Cogmind - Beta 11 X11 @@@ ROGUE MODE // 2022.03.02 @ 16:30:45 Player: OccultOnion Result: Destroyed by Y-45 Defender with Beam Rifle Performance ------------- Evolutions (1) 500 Regions Visited (2) 400 Robots Destroyed (22) 110 Value Destroyed (501) 501 Prototype IDs (0) 0 Alien Tech Used (0) 0 Bonus (16) 16 TOTAL SCORE: 1527 Bonus ------- High Alert Combat Kills 16 Cogmind --------- Core Integrity 0/400 Matter 283/300 Energy 98/100 System Corruption 7% Temperature Cool (9) Movement Walking (120) Location -9/Materials Parts ------- > --- POWER (1) -------- (None) > --- PROPULSION (3) --- Aluminum Leg > --- UTILITY (3) ------ Small Storage Unit Improved Terrain Scanner > --- WEAPON (2) ------- Light Assault Rifle Maul > --- INVENTORY (8) ---- Ion Engine Light Treads Wheel Wheel Improved Terrain Scanner Small Laser Assault Rifle Heavy Assault Rifle Peak State ------------ > --- POWER ------------ Ion Engine > --- PROPULSION ------- Aluminum Leg Aluminum Leg Aluminum Leg > --- UTILITY ---------- Small Storage Unit Small Storage Unit Improved Terrain Scanner > --- WEAPON ----------- Light Assault Rifle Maul > --- INVENTORY -------- Ion Engine Aluminum Leg Wheel Wheel Improved Terrain Scanner Assault Rifle Light Assault Rifle Light Assault Rifle [Rating: 13] Favorites ----------- Power Ion Engine Engine Ion Engine Propulsion Aluminum Leg Leg Aluminum Leg Utility Small Storage Unit Device Improved Terrain Scanner Storage Small Storage Unit Weapon Light Assault Rifle Energy Gun Small Laser Ballistic Gun Light Assault Rifle Impact Weapon Maul Build | -11 -10 -9 ------- Run | Scr Mat Mat Slots Evolved 2 | . . 2 Power . | . . . Propulsion 1 | . . 1 Utility 1 | . . 1 Weapon . | . . . Parts Attached 13 | 1 . 12 Power . | . . . Engine . | . . . Core . | . . . Reactor . | . . . Propulsion 6 | . . 6 Treads . | . . . Leg 6 | . . 6 Wheel . | . . . Hover . | . . . Flight . | . . . Utility 2 | 1 . 1 Device 1 | . . 1 Storage 1 | 1 . . Processor . | . . . Hackware . | . . . Protection . | . . . Artifact . | . . . Weapon 5 | . . 5 Energy Gun 1 | . . 1 Energy Cannon . | . . . Ballistic Gun 2 | . . 2 Ballistic Cannon . | . . . Launcher . | . . . Special Weapon . | . . . Impact Weapon 2 | . . 2 Slashing Weapon . | . . . Piercing Weapon . | . . . Special Melee Weapon . | . . . Unidentified Prototypes . | . . . Parts Lost 9 | . . 9 Power 1 | . . 1 Propulsion 5 | . . 5 Utility 1 | . . 1 Weapon 2 | . . 2 Highest Loss Streak 6 | . . 6 To Critical Strikes . | . . . Average Slot Usage (%) 89 | . 100 85 Engine 8 | . 14 7 Leg 26 | . 28 26 Device 8 | . . 10 Storage 22 | . 28 20 Ballistic Gun 19 | . 28 16 Impact Weapon 2 | . . 3 Naked Turns . | . . . Heaviest Build 20 | 18 18 20 Greatest Support 30 | 20 20 30 Greatest Overweight (x) 3 | . . 3 Average Overweight (x) . | . . . Largest Inventory Capacity 8 | 8 8 8 Average Capacity 8 | 8 8 8 Most Carried 8 | 6 8 8 Average Carried 7 | 6 7 7 Final Capacity 8 | 8 8 8 Final Carried 8 | 6 8 8 Class Distribution -------------------- 100% | Mutant Dominant Class ---------------- Mutant | -10/Materials Mutant | -9/Materials Resources | -11 -10 -9 ----------- Run | Scr Mat Mat Matter Collected 538 | 254 40 244 Remotely . | . . . Salvage Created 750 | 72 78 600 Parts 37 | 4 5 28 Haulers Intercepted 1 | . . 1 Recyclers Shooed . | . . . Parts Field Recycled . | . . . Retrieved Matter . | . . . Parts Self-Destructed . | . . . Prevented . | . . . Kills | -11 -10 -9 ------- Run | Scr Mat Mat Combat Hostiles Destroyed 13 | . 2 11 Melee 1 | . . 1 Guns 12 | . 2 10 Classes Destroyed 8 | 2 1 5 Worker 1 | . . 1 Builder 5 | . . 5 Tunneler 1 | 1 . . Hauler 1 | . . 1 Recycler 1 | 1 . . Swarmer 3 | . . 3 Grunt 6 | . 2 4 Sentry 4 | . . 4 Best Kill Streak 5 | 1 2 5 Combat Bots Only 4 | . 2 4 Max Kills in Single Turn 1 | 1 1 1 Gunslinging . | . . . Exploded . | . . . Melee 1 | . . 1 Uniques/NPCs Destroyed . | . . . Combat | -11 -10 -9 -------- Run | Scr Mat Mat Damage Taken 1556 | . 106 1450 Core 400 | . . 400 Absorbed by Shields . | . . . Core Remaining (%) 100 | 100 100 . Volleys Fired 81 | 11 11 59 Largest 2 | 2 2 2 Hottest 40 | 40 40 40 Shots Fired 144 | 22 22 100 Gun 144 | 22 22 100 Cannon . | . . . Launcher . | . . . Special . | . . . Kinetic 144 | 22 22 100 Thermal . | . . . Explosive . | . . . Electromagnetic . | . . . Robot Hit Streak 15 | 4 5 15 Robot Miss Streak 5 | 3 3 5 Penetration Max . | . . . Secondary Targets . | . . . Shots Hit Robots 102 | 11 15 76 Core Hits 33 | 3 6 24 Critical Kills . | . . . Critical Parts Destroyed 4 | . . 4 Critical Strikes 4 | . . 4 Smash 4 | . . 4 Melee Attacks 24 | . . 24 Impact 24 | . . 24 Slashing . | . . . Piercing . | . . . Sneak Attacks 5 | . . 5 Combat Hostiles . | . . . Follow-up Attacks . | . . . Damage Inflicted 1689 | 116 174 1399 Guns 952 | 116 174 662 Cannons . | . . . Explosions . | . . . Melee 737 | . . 737 Ramming . | . . . Kinetic 952 | 116 174 662 Thermal . | . . . Explosive . | . . . Electromagnetic . | . . . Impact 737 | . . 737 Slashing . | . . . Piercing . | . . . Highest Corruption 7 | . . 7 Average Corruption 7 | . . 7 Corruption Purged . | . . . Corruption Blocked . | . . . Effects 4 | . . 4 Message Errors 1 | . . 1 Matter Fused 1 | . . 1 Data Loss (minor) 1 | . . 1 Data Loss (major) 1 | . . 1 Overload Shots . | . . . Overflow Damage 646 | . . 646 Projectiles . | . . . Explosions . | . . . Melee 646 | . . 646 Knockbacks 2 | . . 2 Impact 2 | . . 2 Kinetic . | . . . Secondary . | . . . Self-Inflicted Damage . | . . . Shots . | . . . Rammed . | . . . Targets Rammed . | . . . Kicked . | . . . Crushed . | . . . Highest Temperature 24 | . 18 24 Average Temperature 7 | . 9 6 Received Heat Transfer 483 | . 57 426 Siege Activations . | . . . Robots Corrupted . | . . . Combat Hostiles . | . . . Parts Fried 9 | . . 9 Impact Corruptions 20 | . . 20 Robots Melted . | . . . Combat Hostiles . | . . . Parts Melted . | . . . Heat Transferred . | . . . Parts Sabotaged . | . . . Parts Stolen . | . . . Parts Stripped . | . . . Power Chain Reactions . | . . . Missiles Intercepted . | . . . Alert | -11 -10 -9 ------- Run | Scr Mat Mat Peak Influence 430 | 10 116 430 Initial 48 | . 6 48 Average 184 | 5 46 250 Maximum Alert Level 2 | . . 2 Low Security (%) 49 | 100 100 27 Level 1 44 | . . 64 Level 2 5 | . . 8 Level 3 . | . . . Level 4 . | . . . Level 5 . | . . . High Security . | . . . Max Security . | . . . Squads Dispatched 4 | . 1 3 Investigation . | . . . Extermination . | . . . Reinforcement 4 | . 1 3 Assault . | . . . Garrison . | . . . Intercept . | . . . Searches Triggered . | . . . Construction Impeded 1 | . . 1 Haulers Reinforced . | . . . Active Scanning Responses . | . . . Cargo Convoy Interrupts . | . . . Stealth | -11 -10 -9 --------- Run | Scr Mat Mat Distress Signals 1 | . . 1 Communications Jammed . | . . . Distress Signals . | . . . Times Spotted 24 | . 5 19 Peak Tracking Total 5 | . 2 5 Tactical Retreats 1 | . 1 . Traps | -11 -10 -9 ------- Run | Scr Mat Mat Traps Triggered 2 | . . 2 Indirectly . | . . . Trap Hack Attempts . | . . . Triggered . | . . . Disarmed . | . . . Reprogrammed . | . . . Reused . | . . . Traps Extracted . | . . . Installed . | . . . Triggered . | . . . Machines | -11 -10 -9 ---------- Run | Scr Mat Mat Machines Disabled 2 | . . 2 Max in Single Turn 1 | . . 1 Machines Sabotaged . | . . . Garrisons Compromised . | . . . Overloaded Fab Kills . | . . . Hacking | -11 -10 -9 --------- Run | Scr Mat Mat Machines Accessed 11 | . 5 6 Terminals 11 | . 5 6 Fabricators . | . . . Repair Stations . | . . . Recycling Units . | . . . Scanalyzers . | . . . Garrison Access . | . . . Total Hacks 30 | . 16 14 Successful 13 | . 8 5 Failed 17 | . 8 9 Catastrophic 4 | . 2 2 Database Lockouts . | . . . Manual 29 | . 16 13 Terminals 30 | . 16 14 Fabricators . | . . . Repair Stations . | . . . Recycling Units . | . . . Scanalyzers . | . . . Garrison Access . | . . . Terminal Hacks 6 | . 4 2 Part Schematic 1 | . 1 . Terminal Index 2 | . 1 1 Unreport Threat 2 | . 2 . Zone Layout 1 | . . 1 Fabricator Hacks . | . . . Repair Station Hacks . | . . . Recycling Unit Hacks . | . . . Scanalyzer . | . . . Garrison Access Hacks . | . . . Unauthorized Hacks 7 | . 4 3 Terminals 7 | . 4 3 Track 1 | . . 1 Botnet 6 | . 4 2 Fabricators . | . . . Repair Stations . | . . . Recycling Units . | . . . Scanalyzers . | . . . Garrison Access . | . . . Data Cores Recovered . | . . . Used . | . . . Hacking Detections 11 | . 5 6 Full Trace Events 1 | . 1 . Feedback Events . | . . . Feedback Blocked . | . . . Robot Schematics Acquired . | . . . Robots Built . | . . . Authchips . | . . . Time . | . . . Total Robot Build Rating . | . . . Part Schematics Acquired 1 | . 1 . Parts Built . | . . . Authchips . | . . . Time . | . . . Total Part Build Rating . | . . . Parts Repaired . | . . . Time . | . . . Parts Recycled . | . . . Recycled Matter . | . . . Retrieved Matter . | . . . Retrieved Components . | . . . Parts Scanalyzed . | . . . Part Schematics Acquired . | . . . Parts Damaged . | . . . Bothacking | -11 -10 -9 ------------ Run | Scr Mat Mat Used RIF Installer . | . . . Robots Hacked . | . . . Non-combat . | . . . Combat . | . . . Robot Hacks Applied . | . . . Relay Couplers Released . | . . . Fabnet Peak Effective % . | . . . Robots Rewired . | . . . Allies Hacked . | . . . Hacks Repelled . | . . . Allies | -11 -10 -9 -------- Run | Scr Mat Mat Total Allies . | . . . Largest Group . | . . . Highest-Rated Group . | . . . Highest-Rated Ally . | . . . Total Orders . | . . . Ally Attacks . | . . . Total Damage . | . . . Kills . | . . . Allies Corrupted . | . . . Allies Melted . | . . . Intel | -11 -10 -9 ------- Run | Scr Mat Mat Robot Analysis Total . | . . . Derelict Logs Recovered . | . . . Drone Launches . | . . . Drone Recoveries . | . . . Exploration | -11 -10 -9 ------------- Run | Scr Mat Mat Turns Passed 792 | 57 187 548 Spaces Moved 390 | 21 118 251 Core 1 | . . 1 Treads . | . . . Legs 389 | 21 118 250 Wheels . | . . . Hover . | . . . Flight . | . . . Fastest Speed 120 | 120 120 120 Average Speed 120 | 120 120 120 Slowest Speed 200 | 120 120 200 Overloaded Moves . | . . . Propulsion Burnouts . | . . . Robots Hopped . | . . . Cave-ins Triggered 1 | . . 1 Exploration Rate (%) 18 | 3 20 31 Regions Visited 2 Branch Regions . Pre-discovered Areas . | . . . Known Exits Taken . | . . . Unknown Exits Taken 2 | 1 1 . Scrap Searched . | . . . Spaces Dug 14 | . . 14 Terrain Destroyed 14 | . . 14 Melee 14 | . . 14 Projectile . | . . . AOE . | . . . Terrain Rammed . | . . . Walls Destroyed . | . . . Machines Disabled . | . . . Actions | -11 -10 -9 --------- Run | Scr Mat Mat Total 537 | 32 144 361 Wait 16 | . 10 6 Move 388 | 20 117 251 Hop . | . . . Pick Up 11 | . 4 7 Fast Attach 5 | 1 . 4 Attach 5 | . . 5 Detach . | . . . Swap 3 | . . 3 Drop 4 | . 2 2 Fire 81 | 11 11 59 Melee 24 | . . 24 Ram . | . . . Kick . | . . . Crush . | . . . Escape Stasis . | . . . Rewire . | . . . Trap . | . . . Miscellaneous . | . . . Route ------- -11/Scrapyard -10/Materials (discovered 2 exits: *Mat / [*Min]) -9/Materials (discovered 1 exit: [*Sto]) History --------- Turn | Location | Event 13 | -11/Scrapyard | Discovered new exit (range 3) 58 | -11/Scrapyard | Entered Materials 93 | -10/Materials | Discovered new exit (range 12) 233 | -10/Materials | Discovered new exit (range 9) 245 | -10/Materials | Entered another Materials area 245 | -9/Materials | Evolved 2 slots: Propulsion x1, Utility x1 311 | -9/Materials | Build established: Mutant 631 | -9/Materials | Core integrity fell below 50% 667 | -9/Materials | Lost 6 parts (1p3n2w) 708 | -9/Materials | Crushed by falling debris 708 | -9/Materials | Core integrity fell below 20% 780 | -9/Materials | Discovered new exit (range 11) 793 | -9/Materials | Destroyed by Y-45 Defender with Beam Rifle Last Messages --------------- 00745_ Acquired Aluminum Leg. 00754_ O-16 Technician: "IFF HANDSHAKE FAILED. SECURING TERMINAL." 00760_ System corrupted: Substantial component data lost. 00762_ Connecting with Terminal... >>Layout(Zone) Retrieving Zone 3N layout... Downloaded map data. 00775_ System corrupted: Matter fused (-10). 00777_ Sneak attack on K-01 Serf. 00777_ K-01 Serf suffers critical hit (Smash). 00777_ Destroyed Wheel. 00777_ Destroyed Lgt. Ion Engine. 00777_ K-01 Serf system corrupted by crushing effect. 00777_ Wheel fried. 00777_ Sml. Matter Pod fried. 00777_ K-01 Serf destroyed. 00780_ Acquired 13 matter. 00780_ EXIT=FOUND 00792_ ALERT: Hostiles spotted, dispatching reinforcements to Terminal M008. 00792_ ALERT: Hostiles spotted, dispatching reinforcements to Terminal M004. Map ----- +----------------------------------------------------+ | """""!# #########+###########????????????? | | """"" # #?????# #???????????????????? | | # ##????# """ #???????????????????? | | +###### #?????# """ "#???????????????????? | | #??# #?????# """ T#???????????????????? | | #??# #??#?## "#???????????????????? | | #?## #????## #???????????????????? | | #??# #?????########???????????????????? | | #??# #??#??????#??????????????????????? | | #??# #?????##??#??????????????????????? | | % #??# #????????????????????????????????? | | % %#?## ###########?#????????????????????? | | %%##?# ## #??????????????????????? | | ###"#?# ## """"" #??????????????????????? | | ####### ## ""T"" #?????#####????????????? | | ^ # #???#?# ????????????? | | + !! #?????#"" ????????????? | | # !! #??#??#"" ????????????? | | #+######## !! ##????#"T ????????????? | | #??# #??#??#"" ????????????? | | "" #??# #?????#"" ????????????? | | " """ #??#####+####????## ?"?? ???????? | | " S" #??????# #????????# ???????????? | | " #??????# #????????#####+##?????????? | | #?######+############ #?????????? | | #?# + @Y #?????????? | | #?# """" ######### < #?????????? | | #####+### ""S"" #???????# #?????????? | | # "" "" ########## ??#?????????? | | / # # ????????????? | | ?????? ?? #??????????????????????? | | ????????# ] #??????????????????#???? | | ????????# #????? ????????????????? | | ????????###########??????????????????????? | | ???????#?????????????????????????????????? | | ?????????????????????????????????????????? | | ????????????????????"??? ????????????????? | | ?????????????????????????????????????????? | | ?????????????????????????????????????????? | | ?????????????????????????????????????????? | | ?????????????????????????????????????????? | | ?????????????????????????????????????????? | | ?????????????????????????????????????????? | | ?????????????????????????????????????????? | | ?????????????????????????????????????????? | | ?????????????????????????????????????????? | | ?????????????????????????????????????????? | | ?????????????????????????????????????????? | | ?????????????????????????????????????????? | | ?????????????????????????????????????????? | +----------------------------------------------------+ Best States ------------- Heat Dissipation 28 Energy Generation 10 Energy Capacity 250 Matter Stores 300 Matter Capacity 300 Sight Range 16 Terrain Scan Range 16 Terrain Scan Density 10 Evasion (%) 55 Item Schematics ----------------- Signal Interpreter | -10/Materials | Hacked Robot Schematics ------------------ None Fabricated ------------ Nothing Alien Tech Used ----------------- None Achievements -------------- None Challenges ------------ None Game ------ Seed WarpBiocellKinecellerator Manual? 0 Play Time 00:10:16 Cumulative 109.0 hours Start 2022.03.02 @ 16:22:36 End 2022.03.02 @ 16:30:45 Sessions 1 Manual Loads 0 Difficulty Rogue Special Mode None Game No. 219 Rogue 219 Adventurer 0 Explorer 0 Win Type - Total 0 Types 0/0/0/0/0/0/0/0/0 Lore% 33 Gallery% 55 Achievement% 35 Wizard Run 0 Options --------- ASCII 0 Keyboard 1 Movement Vi Keybinds 0 Fullscreen 1 Font 20/SmallcapsGlow Map View 82x60 Tactical HUD 1 Map Filters NONE Filters NONE Steam 1 RUN: 4c77684c-b5eb-4d57-b464-74bef3523d7b